Cogmind - Beta 10.1 @@@ ROGUE MODE // 2020.09.21 @ 06:51:57 // AFD2020/Player2 Player: DragoX Result: Core destroyed Performance ------------- Evolutions (2) 1000 Regions Visited (5) 1000 Robots Destroyed (68) 340 Value Destroyed (1900) 1900 Prototype IDs (23) 460 Alien Tech Used (0) 0 Bonus (719) 719 TOTAL SCORE: 5419 Bonus ------- High Alert Combat Kills 316 Follower Combat Kills 419 Aligned with FarCom 300 Friendly Fire -316 Cogmind --------- Core Integrity 0/550 Matter 300/300 Energy 140/140 System Corruption 1% Temperature Cool (8) Movement Rolling (130) Ox5 Location -8/Materials Parts ------- > --- POWER (1) -------- Light Deuterium Engine > --- PROPULSION (2) --- Wheel Wheel > --- UTILITY (6) ------ Humpback Heavy Armor Plating Heavy Armor Plating > --- WEAPON (2) ------- Beam Cannon > --- INVENTORY (24) --- Wheel Wheel Humpback Humpback Advanced Sensor Array Experimental Sensor Array Heavy Armor Plating Heavy Armor Plating Heavy Armor Plating Hacking Suite Hacking Suite Improved Trap Extractor Integration Mediator Grenade Launcher Improved Datajack Mining Laser Peak State ------------ > --- POWER ------------ Light Deuterium Engine > --- PROPULSION ------- Wheel Wheel > --- UTILITY ---------- Humpback Improved Light Armor Plating Improved Light Armor Plating Improved Light Armor Plating Improved Light Armor Plating > --- WEAPON ----------- YOLO Cannon > --- INVENTORY -------- Wheel Wheel Humpback Humpback Advanced Sensor Array Experimental Sensor Array Heavy Armor Plating Heavy Armor Plating Heavy Armor Plating Heavy Armor Plating Improved Trap Extractor Integration Mediator Beam Cannon Grenade Launcher Improved Datajack Mining Laser [Rating: 44] Favorites ----------- Power Deuterium Engine Engine Deuterium Engine Power Core Light Nuclear Core Propulsion Wheel Leg Aluminum Leg Wheel Wheel Utility Small Storage Unit Storage Small Storage Unit Protection Improved Light Armor Plating Weapon Grenade Launcher Energy Gun EM Pulse Gun Energy Cannon YOLO Cannon Launcher Grenade Launcher Build | -11 -10 -10 -10 -9 -8 ------- Run | Scr Mat Min Exi Min Mat Slots Evolved 4 | . . . . . 4 Power . | . . . . . . Propulsion . | . . . . . . Utility 4 | . . . . . 4 Weapon . | . . . . . . Parts Attached 37 | 7 3 9 3 6 9 Power 8 | 1 1 3 1 1 1 Engine 5 | 1 . 2 . 1 1 Core 3 | . 1 1 1 . . Reactor . | . . . . . . Propulsion 6 | 2 . 2 . 2 . Treads . | . . . . . . Leg 2 | 2 . . . . . Wheel 4 | . . 2 . 2 . Hover . | . . . . . . Flight . | . . . . . . Utility 9 | 2 . . 1 . 6 Device . | . . . . . . Storage 3 | 2 . . 1 . . Processor . | . . . . . . Hackware . | . . . . . . Protection 6 | . . . . . 6 Artifact . | . . . . . . Weapon 14 | 2 2 4 1 3 2 Energy Gun 4 | 2 1 1 . . . Energy Cannon 7 | . 1 2 1 1 2 Ballistic Gun . | . . . . . . Ballistic Cannon . | . . . . . . Launcher 3 | . . 1 . 2 . Special Weapon . | . . . . . . Impact Weapon . | . . . . . . Slashing Weapon . | . . . . . . Piercing Weapon . | . . . . . . Special Melee Weapon . | . . . . . . Unidentified Prototypes . | . . . . . . Parts Lost 6 | . 2 1 . 3 . Power 1 | . . . . 1 . Propulsion 2 | . . . . 2 . Utility . | . . . . . . Weapon 3 | . 2 1 . . . Highest Loss Streak 2 | . 2 1 . 2 . Average Slot Usage (%) 76 | . 97 100 82 62 69 Engine 8 | . 4 3 2 12 9 Core 4 | . 9 10 11 1 . Leg 1 | . 28 . . . . Wheel 19 | . . 28 28 16 18 Storage 17 | . 28 28 21 14 9 Protection 6 | . . . . . 22 Energy Gun 3 | . 20 12 . . . Energy Cannon 6 | . 5 1 14 5 9 Launcher 8 | . . 14 3 12 1 Naked Turns . | . . . . . . Heaviest Build 133 | 17 18 23 103 107 133 Greatest Support 32 | 20 20 32 32 32 20 Greatest Overweight (x) 35 | 5 . . 3 35 6 Average Overweight (x) 2 | 2 . . 1 5 4 Largest Inventory Capacity 24 | 8 8 8 24 24 24 Average Capacity 18 | 6 8 8 15 24 24 Most Carried 24 | 8 7 8 11 14 24 Average Carried 11 | 4 5 6 8 12 19 Final Capacity 24 | 8 8 8 24 24 24 Final Carried 21 | 7 7 7 11 13 21 Class Distribution -------------------- 65% | Hauler-Mutant 34% | Mutant Dominant Class ---------------- Mutant | -10/Materials Mutant | -10/Mines Hauler-Mutant | -10/Exiles Hauler-Mutant | -9/Mines Hauler-Mutant | -8/Materials Resources | -11 -10 -10 -10 -9 -8 ----------- Run | Scr Mat Min Exi Min Mat Matter Collected 630 | 270 20 130 . 120 90 Remotely . | . . . . . . Salvage Created 2026 | 90 242 155 . 122 1417 Parts 106 | 3 15 18 . 3 67 Haulers Intercepted 1 | . . . . . 1 Recyclers Shooed . | . . . . . . Parts Field Recycled . | . . . . . . Retrieved Matter . | . . . . . . Parts Self-Destructed . | . . . . . . Prevented . | . . . . . . Kills | -11 -10 -10 -10 -9 -8 ------- Run | Scr Mat Min Exi Min Mat Combat Hostiles Destroyed 47 | . 5 8 . 7 27 Guns 5 | . 4 1 . . . Cannons 10 | . 1 1 . 1 7 AOE 32 | . . 6 . 6 20 Classes Destroyed 14 | 1 4 . . 1 8 Worker 4 | . . . . . 4 Builder 1 | . . . . . 1 Tunneler 1 | . . . . . 1 Hauler 1 | . . . . . 1 Recycler 6 | 1 . . . . 5 Mechanic 1 | . . . . . 1 Operator 3 | . 1 . . . 2 Watcher 4 | . 1 . . . 3 Swarmer 11 | . 2 6 . . 3 Grunt 27 | . 3 2 . 3 19 Duelist 1 | . . . . . 1 Sentry 2 | . . . . . 2 Hunter 2 | . . . . . 2 Assembled 4 | . . . . 4 . Best Kill Streak 16 | 1 2 3 . 3 16 Combat Bots Only 6 | . 2 3 . 3 6 Max Kills in Single Turn 4 | 1 1 3 . 2 4 Gunslinging . | . . . . . . Exploded 3 | . . 3 . 1 2 Melee . | . . . . . . Uniques/NPCs Destroyed . | . . . . . . Combat | -11 -10 -10 -10 -9 -8 -------- Run | Scr Mat Min Exi Min Mat Damage Taken 1229 | . 228 245 . 535 221 Core 115 | . 18 14 . 70 13 Absorbed by Shields . | . . . . . . Core Remaining (%) 51 | 100 . . . 3 . Volleys Fired 132 | 2 33 19 . 13 65 Largest 2 | 2 2 2 . 1 1 Hottest 100 | 80 80 70 . 100 100 Shots Fired 160 | 4 56 22 . 13 65 Gun 69 | 4 53 12 . . . Cannon 85 | . 3 7 . 10 65 Launcher 6 | . . 3 . 3 . Special . | . . . . . . Kinetic . | . . . . . . Thermal 85 | . 3 7 . 10 65 Explosive 6 | . . 3 . 3 . Electromagnetic 69 | 4 53 12 . . . Robot Hit Streak 11 | 3 6 11 . 2 7 Robot Miss Streak 8 | . 8 1 . 2 4 Penetration Max . | . . . . . . Secondary Targets 1 | . 1 . . . . Max Gunslinging Chain 1 | . 1 . . . . Shots Hit Robots 91 | 3 32 18 . 3 35 Core Hits 88 | 2 13 10 . 10 53 Critical Hits 2 | . . . . . 2 Critical Kills 1 | . . . . . 1 Critical Parts Destroyed 1 | . . . . . 1 Melee Attacks . | . . . . . . Impact . | . . . . . . Slashing . | . . . . . . Piercing . | . . . . . . Sneak Attacks . | . . . . . . Combat Hostiles . | . . . . . . Follow-up Attacks . | . . . . . . Damage Inflicted 7347 | 41 424 479 . 890 5513 Guns 501 | 41 351 109 . . . Cannons 2919 | . 51 123 . 256 2489 Explosions 3925 | . 20 247 . 634 3024 Melee . | . . . . . . Ramming 2 | . 2 . . . . Kinetic . | . . . . . . Thermal 6438 | . 71 123 . 731 5513 Explosive 406 | . . 247 . 159 . Electromagnetic 501 | 41 351 109 . . . Impact . | . . . . . . Slashing . | . . . . . . Piercing . | . . . . . . Highest Corruption 1 | . . . . . 1 Average Corruption 1 | . . . . . 1 Corruption Purged . | . . . . . . Effects 1 | . . . . . 1 Message Errors 1 | . . . . . 1 Overload Shots . | . . . . . . Overflow Damage 680 | . . . . 134 546 Projectiles 479 | . . . . 80 399 Explosions 201 | . . . . 54 147 Melee . | . . . . . . Knockbacks . | . . . . . . Impact . | . . . . . . Kinetic . | . . . . . . Secondary . | . . . . . . Self-Inflicted Damage 168 | . . 29 . 139 . Shots 5 | . . 1 . 4 . Rammed . | . . . . . . Targets Rammed 1 | . 1 . . . . Kicked 1 | . 1 . . . . Crushed . | . . . . . . Highest Temperature 360 | 36 264 233 . 104 360 Average Temperature 65 | 20 73 70 . 39 68 Received Heat Transfer 376 | . 108 99 . 106 63 Siege Activations . | . . . . . . Robots Corrupted . | . . . . . . Combat Hostiles . | . . . . . . Parts Fried . | . . . . . . Impact Corruptions . | . . . . . . Robots Melted . | . . . . . . Combat Hostiles . | . . . . . . Parts Melted 11 | . 1 2 . . 8 Heat Transferred 6762 | . 161 259 . 800 5542 Parts Sabotaged . | . . . . . . Parts Stolen . | . . . . . . Parts Stripped . | . . . . . . Power Chain Reactions 1 | . 1 . . . . Missiles Intercepted . | . . . . . . Alert | -11 -10 -10 -10 -9 -8 ------- Run | Scr Mat Min Exi Min Mat Peak Influence 1115 | 5 329 170 . 114 1115 Initial 49 | . 3 49 . . 21 Average 240 | 2 195 68 . 39 667 Maximum Alert Level 4 | . 1 . . . 4 Low Security (%) 74 | 100 46 100 . 100 26 Level 1 4 | . 53 . . . 1 Level 2 3 | . . . . . 12 Level 3 17 | . . . . . 57 Level 4 . | . . . . . 1 Level 5 . | . . . . . . High Security . | . . . . . . Max Security . | . . . . . . Squads Dispatched 9 | . 2 . . . 7 Investigation 3 | . 1 . . . 2 Extermination . | . . . . . . Reinforcement 6 | . 1 . . . 5 Assault . | . . . . . . Garrison . | . . . . . . Intercept . | . . . . . . Construction Impeded 1 | . . . . . 1 Haulers Reinforced . | . . . . . . Stealth | -11 -10 -10 -10 -9 -8 --------- Run | Scr Mat Min Exi Min Mat Distress Signals 4 | . 1 . . 1 2 Communications Jammed . | . . . . . . Distress Signals . | . . . . . . Times Spotted 83 | . 16 6 . 26 35 Peak Tracking Total 9 | . 4 3 . 9 5 Tactical Retreats 5 | . 1 . . 2 2 Traps | -11 -10 -10 -10 -9 -8 ------- Run | Scr Mat Min Exi Min Mat Traps Triggered 2 | . . . . . 2 Indirectly . | . . . . . . Trap Hack Attempts . | . . . . . . Triggered . | . . . . . . Disarmed . | . . . . . . Reprogrammed . | . . . . . . Reused . | . . . . . . Traps Extracted . | . . . . . . Installed . | . . . . . . Triggered . | . . . . . . Machines | -11 -10 -10 -10 -9 -8 ---------- Run | Scr Mat Min Exi Min Mat Machines Disabled 13 | . . . . 2 11 Max in Single Turn 2 | . . . . . 2 Machines Sabotaged . | . . . . . . Garrisons Compromised . | . . . . . . Overloaded Fab Kills . | . . . . . . Fab Network Shutdowns . | . . . . . . Hacking | -11 -10 -10 -10 -9 -8 --------- Run | Scr Mat Min Exi Min Mat Machines Accessed 10 | . 3 1 5 . 1 Terminals 3 | . 3 . . . . Fabricators . | . . . . . . Repair Stations . | . . . . . . Recycling Units . | . . . . . . Scanalyzers 1 | . . . . . 1 Garrison Access . | . . . . . . Total Hacks 40 | . 7 1 28 . 4 Successful 36 | . 3 1 28 . 4 Failed 4 | . 4 . . . . Catastrophic 1 | . 1 . . . . Database Lockouts . | . . . . . . Manual 8 | . 7 . 1 . . Terminals 7 | . 7 . . . . Fabricators . | . . . . . . Repair Stations . | . . . . . . Recycling Units . | . . . . . . Scanalyzers 4 | . . . . . 4 Garrison Access . | . . . . . . Terminal Hacks 29 | . . 1 28 . . Record 27 | . . . 27 . . Open Door 1 | . . 1 . . . EX-Prototype ID Bank 1 | . . . 1 . . Fabricator Hacks . | . . . . . . Repair Station Hacks . | . . . . . . Recycling Unit Hacks . | . . . . . . Scanalyzer 4 | . . . . . 4 Insert Component 2 | . . . . . 2 Analyze 2 | . . . . . 2 Garrison Access Hacks . | . . . . . . Unauthorized Hacks 3 | . 3 . . . . Terminals 3 | . 3 . . . . Disrupt 1 | . 1 . . . . Operators 1 | . 1 . . . . Sabotage 1 | . 1 . . . . Fabricators . | . . . . . . Repair Stations . | . . . . . . Recycling Units . | . . . . . . Scanalyzers . | . . . . . . Garrison Access . | . . . . . . Data Cores Recovered . | . . . . . . Used . | . . . . . . Hacking Detections 3 | . 2 . . . 1 Full Trace Events 3 | . 2 . . . 1 Feedback Events . | . . . . . . Feedback Blocked . | . . . . . . Robot Schematics Acquired . | . . . . . . Robots Built . | . . . . . . Matter . | . . . . . . Time . | . . . . . . Total Robot Build Rating . | . . . . . . Part Schematics Acquired 1 | . . . . . 1 Parts Built . | . . . . . . Matter . | . . . . . . Time . | . . . . . . Total Part Build Rating . | . . . . . . Parts Repaired . | . . . . . . Time . | . . . . . . Parts Recycled . | . . . . . . Recycled Matter . | . . . . . . Retrieved Matter . | . . . . . . Retrieved Components . | . . . . . . Parts Scanalyzed 1 | . . . . . 1 Part Schematics Acquired 1 | . . . . . 1 Parts Damaged . | . . . . . . Bothacking | -11 -10 -10 -10 -9 -8 ------------ Run | Scr Mat Min Exi Min Mat Used RIF Installer . | . . . . . . Robots Hacked . | . . . . . . Non-combat . | . . . . . . Combat . | . . . . . . Robot Hacks Applied . | . . . . . . Relay Couplers Released . | . . . . . . Robots Rewired . | . . . . . . Allies Hacked . | . . . . . . Hacks Repelled . | . . . . . . Allies | -11 -10 -10 -10 -9 -8 -------- Run | Scr Mat Min Exi Min Mat Total Allies 5 | . 1 4 . . . Largest Group 5 | . 1 5 5 4 1 Highest-Rated Group 129 | . 58 129 129 99 84 Highest-Rated Ally 84 | . 58 58 58 63 84 Total Orders 11 | . . 3 5 3 . GUARD 9 | . . 2 4 3 . AID 2 | . . 1 1 . . Ally Attacks 142 | . 18 2 . 56 66 Total Damage 3216 | . 372 44 . 1669 1131 Kills 38 | . 6 . . 24 8 Allies Corrupted . | . . . . . . Allies Melted . | . . . . . . Intel | -11 -10 -10 -10 -9 -8 ------- Run | Scr Mat Min Exi Min Mat Robot Analysis Total . | . . . . . . Derelict Logs Recovered 2 | . . 1 . 1 . Drone Launches . | . . . . . . Drone Recoveries . | . . . . . . Exploration | -11 -10 -10 -10 -9 -8 ------------- Run | Scr Mat Min Exi Min Mat Turns Passed 6511 | 155 406 1256 827 2197 1670 Spaces Moved 2617 | 69 201 649 488 628 582 Core 90 | 47 . . . 43 . Treads . | . . . . . . Legs 223 | 22 201 . . . . Wheels 2304 | . . 649 488 585 582 Hover . | . . . . . . Flight . | . . . . . . Fastest Speed 50 | 50 120 100 100 120 120 Average Speed 141 | 187 120 100 115 220 128 Slowest Speed 1800 | 300 120 100 130 1800 140 Overloaded Moves . | . . . . . . Propulsion Burnouts . | . . . . . . Robots Hopped . | . . . . . . Cave-ins Triggered . | . . . . . . Exploration Rate (%) 62 | 5 45 98 71 99 56 Regions Visited 5 Branch Regions 3 Pre-discovered Areas 3 | . . 2 1 . . Known Exits Taken . | . . . . . . Unknown Exits Taken 5 | 1 1 1 1 1 . Scrap Searched 5 | . . 4 . 1 . Spaces Dug . | . . . . . . Terrain Destroyed 411 | . 5 26 . 153 227 Melee . | . . . . . . Projectile 13 | . . . . 6 7 AOE 398 | . 5 26 . 147 220 Terrain Rammed . | . . . . . . Walls Destroyed . | . . . . . . Machines Disabled . | . . . . . . Actions | -11 -10 -10 -10 -9 -8 --------- Run | Scr Mat Min Exi Min Mat Total 5189 | 90 311 1237 759 1411 1381 Wait 2305 | . 64 542 241 756 702 Move 2612 | 68 200 648 487 627 582 Hop . | . . . . . . Pick Up 63 | 13 6 9 14 7 14 Fast Attach 2 | 1 . 1 . . . Attach 29 | 6 2 5 2 6 8 Detach 3 | . . 1 . . 2 Swap 6 | . 1 3 1 . 1 Drop 36 | . 4 9 14 2 7 Fire 132 | 2 33 19 . 13 65 Melee . | . . . . . . Ram . | . . . . . . Kick 1 | . 1 . . . . Crush . | . . . . . . Escape Stasis . | . . . . . . Rewire . | . . . . . . Trap . | . . . . . . Miscellaneous . | . . . . . . Route ------- -11/Scrapyard -10/Materials -10/Mines (discovered 3 exits: [*Mat x2] / *Exi) -10/Exiles (discovered 2 exits: [*Min x2]) -9/Mines (discovered 2 exits: *Mat x2) -8/Materials (discovered 2 exits: [*Fac x2]) History --------- Turn | Location | Event 39 | -11/Scrapyard | Discovered new exit (range 15) 156 | -11/Scrapyard | Entered Materials 311 | -10/Materials | Build established: Mutant 499 | -10/Materials | Discovered new exit (range 13) 562 | -10/Materials | Entered Mines 562 | -10/Mines | Accompanied by 1 ally 627 | -10/Mines | Discovered new exit (range 7) 1057 | -10/Mines | Escorted by a lone wolf Derelict 1173 | -10/Mines | Assisted by bots powering up and referring to "LRC-V3" 1185 | -10/Mines | Deemed a non-threat by the Exiles lab entrance 1185 | -10/Mines | Discovered new exit (range 5) 1244 | -10/Mines | Learned location of Storage (-7) 1375 | -10/Mines | Found a hidden stash of uninstalled traps 1566 | -10/Mines | Met a Derelict who couldn't figure out how to use a Trap Extractor 1630 | -10/Mines | Discovered new exit (range 10) 1818 | -10/Mines | Entered Exiles 1818 | -10/Exiles | Accompanied by 5 allies 1834 | -10/Exiles | Discovered new exit (range 15) 1848 | -10/Exiles | Met 8R-AWN 1864 | -10/Exiles | Met EX-HEX 1894 | -10/Exiles | Met EX-BIN 1906 | -10/Exiles | Aligned with FarCom system 1907 | -10/Exiles | Given EX-Vault access code 1958 | -10/Exiles | Opened EX-Vault 1965 | -10/Exiles | Found Prototype Energy Cannon 1972 | -10/Exiles | Found Prototype Processor 1979 | -10/Exiles | Identified Modified TNC 1979 | -10/Exiles | Identified YOLO Cannon 2156 | -10/Exiles | Warned to stay clear of 0b10 Research branches 2305 | -10/Exiles | Met EX-DEC 2525 | -10/Exiles | Build established: Hauler-Mutant 2547 | -10/Exiles | Learned location of Zion (-7) 2583 | -10/Exiles | Discovered new exit (range 14) 2645 | -10/Exiles | Left Exiles lab with YOLO Cannon 2645 | -10/Exiles | Entered Mines 2645 | -9/Mines | Accompanied by 4 allies 2740 | -9/Mines | Discovered new exit (range 12) 2778 | -9/Mines | Assembled infested the area 2783 | -9/Mines | Assisted by a Guerilla fighting off Assembled 2847 | -9/Mines | Core integrity fell below 50% 3551 | -9/Mines | Core integrity fell below 20% 3742 | -9/Mines | Found a damaged Exp. Sensor Array with a note attached 3744 | -9/Mines | Found Prototype Device 4228 | -9/Mines | Discovered new exit (range 10) 4402 | -9/Mines | Learned Materials terminal intel 4842 | -9/Mines | Entered Materials 4842 | -8/Materials | Accompanied by 1 ally 4842 | -8/Materials | Evolved 4 slots: Utility x4 4843 | -8/Materials | Loaded intel: 12 terminal locations 5260 | -8/Materials | Core integrity fell below 50% 5289 | -8/Materials | Core integrity fell below 20% 5471 | -8/Materials | Discovered new exit (range 16) 6062 | -8/Materials | Discovered new exit (range 13) 6512 | -8/Materials | Core destroyed Last Messages --------------- 06420_ Acquired Hacking Suite. 06440_ K-01 Serf cleans the Hadron Collector. 06460_ Triggered Shock Trap. 06460_ The floor emits a surge of raw power. 06460_ System corrupted (+1). 06479_ U-05 Engineer lays Concrete. 06481_ O-24 Administrator sends out distress signal. 06481_ O-24 Administrator: "IFF HANDSHAKE FAILED. SECURING TERMINAL." 06484_ O-24 Administrator uses terminal to summon reinforcements. 06484_ ALERT: Hostiles spotted, dispatching reinforcements to Terminal M009. 06484_ O-24 Administrator locks terminal. 06491_ Y-45 Defender destroyed. 06492_ RA&CZ PZ5S9&TOQ%G0O| =8FTS&18LFS6UXHS 06501_ Player 2 attaches Prototype Energy Gun. 06505_ Player 2 drops Great Maul. 06505_ Player 2 attaches Prototype Energy Gun. 06508_ K-01 Serf collects debris. 06510_ Terminal disabled. 06512_ Nuclear Reactor explodes. Map ----- +----------------------------------------------------+ | ?????????????????# %% | | ?????????????????# """" """ % | | ?????????????????# % """" """ | | ???????########### """" """ | | ???????# % | | ???????# | | ???????# % | | ??????#####+######+#########" "##### | | ??????## * ## #"R"##""###+#### | | ???????# ## #"""#?" % ? | | ???????# ## #####??? | | ???????# ! ## #???????? | | ???????# % ## #???????? ?? | | ???????# * ## #??????? ? | | ???????# ## #??????? ? | | ???????# ## #?????? | | ???????# ####+#######?????? | | ???????#######+## #???????########## | | ?????????????# ## #????????????????? | | ?????????????# ## #????????????????? | | ?????????????# ## [ #????????????????? | | ?????????????? ##[[ @= #????????????????# | | ?????????????? ##%" = #???????????????## | | ?????????????? ##*"T" / #??????????????## | | ?????????????? ## """o #??????????????# | | ???????????????# @ k #??????????????# | | ???????????????#####/#####??????????????# | | ??????????????????? #????????############# | | ??????????????????? #????????# | | ??????????????????+###????????# ! | | ??????????????????????????Y???# ! ! | | ??????????????????????????????# | | ??????????????????????????????# * = | | ??????????????????????????????# | | ??????????????????????????????############# | | ??????????????????????????????????????????? | | ???T??????????????????????????????????????? | | ??????????????????????????????????????????? | | ??????????????????????????????????????????? | | ??????????????????????????????????????????? | | ??????????????????????????????????????????? | | ??????????????????????????????????????????? | | ??????????????????????????????????????????? | | ??????????????????????????????????????????? | | ??????????????????????????????????????????? | | ??????????????????????????????????????????? | | ??????????????????????????????????????????? | | ??????????????????????????????????????????? | | ??????????????????????????????????????????? | | ??????????????????????????????????????????? | +----------------------------------------------------+ Best States ------------- Heat Dissipation 31 Energy Generation 14 Energy Capacity 275 Matter Stores 300 Matter Capacity 300 Sight Range 16 Terrain Scan Density 10 Armor Coverage 1200 Evasion (%) 40 Item Schematics ----------------- Hvy. Armor Plating | -8/Materials | Scanalyzed Robot Schematics ------------------ None Fabricated ------------ Nothing Alien Tech Used ----------------- None Achievements -------------- Dramatic Entrance The More The Merrier Challenges ------------ None Player 2 | -11 -10 -10 -10 -9 -8 ---------- Run | Scr Mat Min Exi Min Mat Slots Evolved 4 | . . . . 4 . Power . | . . . . . . Propulsion 2 | . . . . 2 . Utility 1 | . . . . 1 . Weapon 1 | . . . . 1 . Parts Attached 63 | . 9 1 . 20 33 Parts Lost 20 | . . . . 7 13 Damage Taken 2685 | . 195 . . 885 1605 Core 732 | . 33 . . 107 592 Player 2/Cogmind (%) 86 | . 64 . . 60 97 Absorbed by Shields . | . . . . . . Damage Inflicted 3103 | . 372 . . 1600 1131 Player 2/Cogmind (%) 29 | . 46 . . 64 17 Combat Hostiles Destroyed 32 | . 5 . . 22 5 Player 2/Cogmind (%) 40 | . 50 . . 75 15 Game ------ Seed FireIonicCapacitor Manual? 0 Play Time 01:00:04 Cumulative 11.6 hours Start 2020.09.21 @ 05:52:15 End 2020.09.21 @ 06:51:57 Sessions 1 Manual Loads 0 Difficulty Rogue Special Mode AFD2020/Player2 Game No. 18 Rogue 18 Adventurer 0 Explorer 0 Win Type - Total 0 Types 0/0/0/0/0/0/0/0/0 Lore% 10 Gallery% 14 Achievement% 17 Wizard Run 0 Options --------- ASCII 0 Keyboard 0 Movement Mouse Keybinds 0 Fullscreen 1 Font 18/X11 Map View 76x50 Tactical HUD 1 Map Filters NONE Filters NONE Steam 0 RUN: 66ddd119-bc74-483b-bbfe-31052f7946e4